Workbook

Sheet Простой пример
A1: 901.4475814
A3: X | B3: Y
A4: 0 | B4: =SIN(A4) -> 0
A5: =A4+$A$1 -> 901.4475814 | B5: =SIN(A5) -> 0.188377871
A6: 1802.895163 | B6: -0.3700105422
A7: 2704.342744 | B7: 0.5383943371
A8: 3605.790326 | B8: -0.6874999789
A9: 4507.237907 | B9: 0.8119884786
A10: 5408.685488 | B10: -0.9074023073
A11: 6310.13307 | B11: 0.9703250055
A12: 7211.580651 | B12: -0.9985035158
A13: 8113.028233 | B13: 0.990928857
A14: 9014.475814 | B14: -0.9478722533
A15: 9915.923395 | B15: 0.8708754217
A16: 10817.37098 | B16: -0.7626953689
A17: 11718.81856 | B17: 0.6272056712
A18: 12620.26614 | B18: -0.4692577748
A19: 13521.71372 | B19: 0.2945072811
A20: 14423.1613 | B20: -0.1092114379
A21: 15324.60888 | B21: -0.07999491233

Sheet Пример-1
A1: 0.945 | I1: 956.25 | J1: 98
I3: =Base -> 956.25 | J3: =SIN(I3)-COS(I3) -> 0.5772222126 | K3: =OFFSET($J$3,40-ROW(),0) -> 1.206918843
I4: =+I3+$J$1 -> 1054.25 | J4: =SIN(I4)-COS(I4) -> -1.21317702 | K4: =OFFSET($J$3,40-ROW(),0) -> -0.5661627811
I5: =+I4+$J$1 -> 1152.25 | J5: 1.410661131 | K5: -0.2792178195
I6: 1250.25 | J6: -1.098299146 | K6: 1.023682536
I7: 1348.25 | J7: 0.3889860287 | K7: -1.398164318
I8: 1446.25 | J8: 0.460915784 | K8: 1.267316645
I9: 1544.25 | J9: -1.144231796 | K9: -0.6784309429
I10: 1642.25 | J10: 1.413995537 | K10: -0.1556556514
I11: 1740.25 | J11: -1.172708049 | K11: 0.933484634
I12: 1838.25 | J12: 0.507576302 | K12: -1.373930324
I13: 1936.25 | J13: 0.3410054534 | K13: 1.317805295
I14: 2034.25 | J14: -1.066339821 | K14: -0.7853944512
I15: 2132.25 | J15: 1.406273908 | K15: -0.03087641132
I16: 2230.25 | J16: -1.237947544 | K16: 0.8359878129
I17: 2328.25 | J17: 0.6221978346 | K17: -1.338953565
I18: 2426.25 | J18: 0.2184288002 | K18: 1.357990021
I19: 2524.25 | J19: -0.9801101315 | K19: -0.8862169578
I20: 2622.25 | J20: 1.387556619 | K20: 0.09414425153
I21: 2720.25 | J21: -1.293507524 | K21: 0.7319544006
I22: 2818.25 | J22: 0.7319544006 | K22: -1.293507524
I23: 2916.25 | J23: 0.09414425153 | K23: 1.387556619
I24: 3014.25 | J24: -0.8862169578 | K24: -0.9801101315
I25: 3112.25 | J25: 1.357990021 | K25: 0.2184288002
I26: 3210.25 | J26: -1.338953565 | K26: 0.6221978346
I27: 3308.25 | J27: 0.8359878129 | K27: -1.237947544
I28: 3406.25 | J28: -0.03087641132 | K28: 1.406273908
I29: 3504.25 | J29: -0.7853944512 | K29: -1.066339821
I30: 3602.25 | J30: 1.317805295 | K30: 0.3410054534
I31: 3700.25 | J31: -1.373930324 | K31: 0.507576302
I32: 3798.25 | J32: 0.933484634 | K32: -1.172708049
I33: 3896.25 | J33: -0.1556556514 | K33: 1.413995537
I34: 3994.25 | J34: -0.6784309429 | K34: -1.144231796
I35: 4092.25 | J35: 1.267316645 | K35: 0.460915784
I36: 4190.25 | J36: -1.398164318 | K36: 0.3889860287
I37: 4288.25 | J37: 1.023682536 | K37: -1.098299146
I38: 4386.25 | J38: -0.2792178195 | K38: 1.410661131
I39: 4484.25 | J39: -0.5661627811 | K39: -1.21317702
I40: 4582.25 | J40: 1.206918843 | K40: 0.5772222126

Sheet Пример-2
A1: 0 | K1: 0.45
K3: -5 | L3: =SIN(K3)*$K$1 -> 0.4315159236 | M3: =SIN(K3)*-$K$1 -> -0.4315159236
K4: =K3+1 -> -4 | L4: 0.3405611229 | M4: -0.3405611229
K5: -3 | L5: -0.06350400363 | M5: 0.06350400363
K6: -2 | L6: -0.4091838421 | M6: 0.4091838421
K7: -1 | L7: -0.3786619432 | M7: 0.3786619432
K8: 0 | L8: 0 | M8: 0
K9: 1 | L9: 0.3786619432 | M9: -0.3786619432
K10: 2 | L10: 0.4091838421 | M10: -0.4091838421
K11: 3 | L11: 0.06350400363 | M11: -0.06350400363
K12: 4 | L12: -0.3405611229 | M12: 0.3405611229

Sheet Пример-3
P1: 209.1562426
P3: X | Q3: Y
P4: 0 | Q4: =SIN(P4) -> 0
P5: =P4+$P$1 -> 209.1562426 | Q5: 0.9712592086
P6: 418.3124852 | Q6: -0.4623665142
P7: 627.4687278 | Q7: -0.7511503113
P8: 836.6249704 | Q8: 0.8199505123
P9: 1045.781213 | Q9: 0.3608140789
P10: 1254.937456 | Q10: -0.9917155226
P11: 1464.093698 | Q11: 0.1112906334
P12: 1673.249941 | Q12: 0.9387357806
P13: 1882.406183 | Q13: -0.5581744177
P14: 2091.562426 | Q14: -0.6730176721
P15: 2300.718669 | Q15: 0.8785634881
P16: 2509.874911 | Q16: 0.254778819
P17: 2719.031154 | Q17: -0.9998505692
P18: 2928.187396 | Q18: 0.2211985703
P19: 3137.343639 | Q19: 0.894549316
P20: 3346.499882 | Q20: -0.6470474532
P21: 3555.656124 | Q21: -0.5865233299

Sheet Пример-4
A35: -1 | B35: =A35+0.2 -> -0.8 | C35: -0.6 | D35: -0.4 | E35: -0.2 | F35: 0 | G35: 0.2 | H35: 0.4 | I35: 0.6 | J35: 0.8 | K35: 1 | L35: 1.2
A36: =A35+0.5 -> -0.5 | B36: =SIN($A36)*SIN(B$35) -> 0.3439188303 | C36: 0.2707040219 | D36: 0.1866970985 | E36: 0.09524715092 | F36: 0 | G36: -0.09524715092 | H36: -0.1866970985 | I36: -0.2707040219 | J36: -0.3439188303 | K36: -0.4034226801 | L36: -0.4468433408
A37: 0 | B37: 0 | C37: 0 | D37: 0 | E37: 0 | F37: 0 | G37: 0 | H37: 0 | I37: 0 | J37: 0 | K37: 0 | L37: 0
A38: 0.5 | B38: -0.3439188303 | C38: -0.2707040219 | D38: -0.1866970985 | E38: -0.09524715092 | F38: 0 | G38: 0.09524715092 | H38: 0.1866970985 | I38: 0.2707040219 | J38: 0.3439188303 | K38: 0.4034226801 | L38: 0.4468433408
A39: 1 | B39: -0.6036343363 | C39: -0.4751302582 | D39: -0.327684236 | E39: -0.1671744774 | F39: 0 | G39: 0.1671744774 | H39: 0.327684236 | I39: 0.4751302582 | J39: 0.6036343363 | K39: 0.7080734183 | L39: 0.7842838475
A40: 1.5 | B40: -0.7155591043 | C40: -0.5632280364 | D40: -0.3884428441 | E40: -0.1981716615 | F40: 0 | G40: 0.1981716615 | H40: 0.3884428441 | I40: 0.5632280364 | J40: 0.7155591043 | K40: 0.8393630887 | L40: 0.9297043156
A41: 2 | B41: -0.6522900476 | C41: -0.5134279481 | D41: -0.3540970966 | E41: -0.1806495113 | F41: 0 | G41: 0.1806495113 | H41: 0.3540970966 | I41: 0.5134279481 | J41: 0.6522900476 | K41: 0.7651474012 | L41: 0.8475007426
A42: 2.5 | B42: -0.4293176378 | C42: -0.3379227917 | D42: -0.2330560303 | E42: -0.1188980604 | F42: 0 | G42: 0.1188980604 | H42: 0.2330560303 | I42: 0.3379227917 | J42: 0.4293176378 | K42: 0.5035969445 | L42: 0.5577994302
A43: 3 | B43: -0.1012332973 | C43: -0.0796823504 | D43: -0.05495471961 | E43: -0.02803621756 | F43: 0 | G43: 0.02803621756 | H43: 0.05495471961 | I43: 0.0796823504 | J43: 0.1012332973 | K43: 0.1187483922 | L43: 0.1315293633
A44: 3.5 | B44: 0.251636485 | C44: 0.1980671093 | D44: 0.136601423 | E44: 0.0696898691 | F44: 0 | G44: -0.0696898691 | H44: -0.136601423 | I44: -0.1980671093 | J44: -0.251636485 | K44: -0.2951739081 | L44: -0.3269436789
A45: 4 | B45: 0.5428968796 | C45: 0.4273228328 | D45: 0.2947127732 | E45: 0.1503534453 | F45: 0 | G45: -0.1503534453 | H45: -0.2947127732 | I45: -0.4273228328 | J45: -0.5428968796 | K45: -0.636827341 | L45: -0.705369506
A46: 4.5 | B46: 0.7012371839 | C46: 0.5519550235 | D46: 0.380668158 | E46: 0.1942052543 | F46: 0 | G46: -0.1942052543 | H46: -0.380668158 | I46: -0.5519550235 | J46: -0.7012371839 | K46: -0.8225632308 | L46: -0.9110962774
A47: 5 | B47: 0.6878901691 | C47: 0.5414493742 | D47: 0.3734227014 | E47: 0.1905088439 | F47: 0 | G47: -0.1905088439 | H47: -0.3734227014 | I47: -0.5414493742 | J47: -0.6878901691 | K47: -0.8069069538 | L47: -0.8937549045
A48: 5.5 | B48: 0.5061236499 | C48: 0.3983780345 | D48: 0.274750344 | E48: 0.1401692243 | F48: 0 | G48: -0.1401692243 | H48: -0.274750344 | I48: -0.3983780345 | J48: -0.5061236499 | K48: -0.5936917126 | L48: -0.6575911602
A49: 6 | B49: 0.2004404095 | C49: 0.157769858 | D49: 0.1088095201 | E49: 0.05551129004 | F49: 0 | G49: -0.05551129004 | H49: -0.1088095201 | I49: -0.157769858 | J49: -0.2004404095 | K49: -0.2351200344 | L49: -0.2604261655
A50: 6.5 | B50: -0.1543176337 | C50: -0.1214658822 | D50: -0.08377166916 | E50: -0.04273774407 | F50: 0 | G50: 0.04273774407 | H50: 0.08377166916 | I50: 0.1214658822 | J50: 0.1543176337 | K50: 0.1810172282 | L50: 0.2005002371
